bitfinex-derivatives/quotes_BTCF0:USTF0_20250912
["timestamp","ask_amount","ask_price","bid_price","bid_amount"]
[1757702483204,0.02334343,116460.0,116450.0,1.34400477]
[1757702485192,0.00312874,116460.0,116450.0,1.59400477]
[1757702485398,0.00312874,116460.0,116450.0,2.39080477]
[1757702485595,0.00312874,116460.0,116450.0,2.66076372]
[1757702486003,0.08878227,116480.0,116470.0,0.1218583]
[1757702486306,0.08878227,116480.0,116470.0,0.77319007]
[1757702486507,0.08878227,116480.0,116470.0,1.56987007]
[1757702487007,0.08878227,116480.0,116470.0,1.48405177]
[1757702487209,0.08878227,116480.0,116470.0,0.77319007]
[1757702487506,0.08878227,116480.0,116470.0,1.56983007]
[1757702487707,0.09078227,116480.0,116470.0,1.56983007]
[1757702487903,0.09078227,116480.0,116470.0,0.77319007]
[1757702488109,0.09378227,116480.0,116470.0,1.56959007]
[1757702489303,0.09378227,116480.0,116470.0,0.77319007]
[1757702489509,0.09378227,116480.0,116470.0,1.56951007]
[1757702490308,0.09378227,116480.0,116470.0,1.56939007]
[1757702491506,0.09378227,116480.0,116470.0,1.3080583]
[1757702491809,0.09378227,116480.0,116470.0,1.56939007]
[1757702492411,0.09378227,116480.0,116470.0,2.0866737]
[1757702492604,0.02525885,116480.0,116470.0,2.0866737]
[1757702492814,0.02525885,116480.0,116470.0,2.0861537]
[1757702493108,0.02525885,116480.0,116470.0,1.2904737]
[1757702493407,0.02525885,116480.0,116470.0,1.5404737]
[1757702493616,0.02525885,116480.0,116470.0,2.3361937]
[1757702494011,0.02525885,116480.0,116470.0,1.5404737]
[1757702494206,0.02525885,116480.0,116470.0,2.3361137]
[1757702494512,0.02525885,116480.0,116470.0,2.17921933]
[1757702494904,0.07671519,116500.0,116490.0,0.1218435]
[1757702495107,0.07671519,116500.0,116490.0,0.86719047]
[1757702495108,0.383,116500.0,116490.0,0.86719047]
[1757702495412,0.0222,116500.0,116490.0,1.30259047]
[1757702495612,0.0222,116500.0,116490.0,1.30243047]
[1757702495905,0.0222,116500.0,116490.0,1.11243047]
[1757702496111,0.0262,116500.0,116490.0,1.77823397]
[1757702496411,0.0312,116500.0,116490.0,1.77823397]
[1757702497305,0.03955364,116500.0,116490.0,1.77823397]
[1757702499210,0.0312,116500.0,116490.0,0.89719047]
[1757702499411,0.0312,116500.0,116490.0,1.43122944]
[1757702499607,0.0312,116500.0,116490.0,1.69231047]
[1757702499810,0.10047335,116500.0,116490.0,1.69231047]
[1757702500009,0.0312,116500.0,116490.0,1.69231047]
[1757702501811,0.0312,116500.0,116490.0,1.77811397]
[1757702503303,0.0312,116500.0,116490.0,1.69231047]
[1757702504618,0.09899791,116500.0,116490.0,1.69231047]
[1757702505817,0.09899791,116500.0,116490.0,1.43122944]
[1757702506016,0.09899791,116500.0,116490.0,1.69231047]
[1757702506617,0.09899791,116500.0,116490.0,0.63610944]
[1757702506816,0.45979791,116500.0,116490.0,0.89719047]
[1757702507019,0.48677693,116500.0,116490.0,1.27107047]
[1757702507217,0.12597693,116500.0,116490.0,1.27107047]
[1757702507417,0.12597693,116500.0,116490.0,0.47719047]
[1757702507613,0.12597693,116500.0,116490.0,1.70107047]
[1757702509423,0.99785796,116500.0,116490.0,0.62604]
[1757702509627,1.00997796,116500.0,116490.0,0.02294]
[1757702511921,0.99785796,116500.0,116490.0,0.03649]
[1757702512224,0.73677693,116500.0,116490.0,0.29757103]
[1757702512424,0.73677693,116500.0,116490.0,0.03649]
[1757702513012,0.99785796,116500.0,116490.0,0.03649]
[1757702513216,0.73677693,116500.0,116490.0,0.03649]
[1757702513418,0.48677693,116500.0,116490.0,0.29757103]
[1757702514322,0.48677693,116500.0,116490.0,0.30757103]
[1757702516420,0.62603302,116500.0,116490.0,0.18574609]
[1757702517029,0.65686112,116500.0,116490.0,0.18574609]
[1757702517430,0.62603302,116500.0,116490.0,0.18574609]
[1757702518519,0.67245772,116500.0,116490.0,0.23217079]
[1757702518720,0.67245772,116500.0,116490.0,0.04649]
[1757702520129,0.48677693,116500.0,116490.0,0.04649]
[1757702520326,0.48677693,116500.0,116490.0,0.23217079]
[1757702520626,0.12597693,116500.0,116490.0,0.82217079]
[1757702520833,0.12597693,116500.0,116490.0,0.84241981]
[1757702521222,0.48677693,116500.0,116490.0,0.84241981]
[1757702523834,0.48677693,116500.0,116490.0,0.34241981]
[1757702524133,0.70328582,116500.0,116490.0,0.15673902]
[1757702524324,0.90108661,116500.0,116490.0,0.14318902]
[1757702524523,0.52972503,116500.0,116490.0,0.14318902]
[1757702524724,0.71540582,116500.0,116490.0,0.14318902]
[1757702524926,0.70328582,116500.0,116490.0,0.15673902]
[1757702525230,0.70328582,116500.0,116490.0,0.34241981]
[1757702525932,0.51760503,116500.0,116490.0,0.34241981]
[1757702526133,0.70328582,116500.0,116490.0,0.34241981]
[1757702526827,0.70328582,116500.0,116490.0,0.15673902]
[1757702527028,0.67245772,116500.0,116490.0,0.15673902]
[1757702527226,0.48677693,116500.0,116490.0,0.24241981]
[1757702527426,0.67245772,116500.0,116490.0,0.75241981]
[1757702527936,0.48677693,116500.0,116490.0,0.75241981]
[1757702532833,0.12597693,116500.0,116490.0,0.75241981]
[1757702533033,0.10377693,116500.0,116490.0,0.83821561]
[1757702533432,0.10377693,116500.0,116490.0,0.75241981]
[1757702533628,0.12550693,116500.0,116490.0,1.54413981]
[1757702533833,0.10377693,116500.0,116490.0,1.54413981]
[1757702536232,0.12550693,116500.0,116490.0,1.54413981]
[1757702538233,0.12550693,116500.0,116490.0,1.54409981]
[1757702538436,0.10377693,116500.0,116490.0,1.54409981]
[1757702538835,0.10377693,116500.0,116490.0,1.62989551]
[1757702540443,0.10377693,116500.0,116490.0,1.54409981]
[1757702540940,0.10377693,116500.0,116490.0,0.75241981]
[1757702541149,0.12550693,116500.0,116490.0,1.54409981]
[1757702542948,0.09852791,116500.0,116490.0,1.54409981]
[1757702543444,0.12551485,116500.0,116490.0,1.54409981]
[1757702544046,0.10378485,116500.0,116490.0,1.62989471]
[1757702544345,0.07679791,116500.0,116490.0,1.62989471]
[1757702545446,0.07679791,116500.0,116490.0,1.54409981]
[1757702546242,0.07679791,116500.0,116490.0,1.62989491]
[1757702546746,0.07679791,116500.0,116490.0,1.54409981]
[1757702547146,0.10378448,116500.0,116490.0,1.54409981]
[1757702547340,0.10378448,116500.0,116490.0,1.90489981]
[1757702548747,0.10378448,116500.0,116490.0,1.99069501]
[1757702549441,0.07679791,116500.0,116490.0,2.1763758]
[1757702549643,0.07679791,116500.0,116490.0,1.99069501]
[1757702549844,0.07679791,116500.0,116490.0,2.1763758]
[1757702550753,0.07679791,116500.0,116490.0,1.3846958]
[1757702550951,0.07679791,116500.0,116490.0,2.1762558]
[1757702551245,0.07679791,116500.0,116490.0,1.99057501]
[1757702552150,0.07679791,116500.0,116490.0,2.1762558]
[1757702553346,0.07679791,116500.0,116490.0,1.3846958]
[1757702553655,0.07679791,116500.0,116490.0,2.1762558]
[1757702553950,0.07679791,116500.0,116490.0,1.99057501]
[1757702555045,0.07679791,116500.0,116490.0,2.1762558]
[1757702555246,0.07679791,116500.0,116490.0,2.2762558]
[1757702561461,0.07679791,116500.0,116490.0,2.2761758]
[1757702563870,0.07679791,116500.0,116490.0,2.09049501]
[1757702565673,0.07679791,116500.0,116490.0,2.00465981]
[1757702566874,0.07679791,116500.0,116490.0,1.64385981]
[1757702568275,0.10371653,116500.0,116490.0,1.64385981]
[1757702568479,0.07679791,116500.0,116490.0,1.64385981]
[1757702569878,0.07679791,116500.0,116490.0,2.09045511]
[1757702575787,0.10372154,116500.0,116490.0,2.09045511]
[1757702577084,0.07679791,116500.0,116490.0,2.09045511]
[1757702578390,0.07679791,116500.0,116490.0,2.32244146]
[1757702578891,0.07679791,116500.0,116490.0,1.90477432]
[1757702579087,0.07679791,116500.0,116490.0,2.32244146]
[1757702582102,0.07679791,116500.0,116490.0,2.32220146]
[1757702586796,0.07679791,116500.0,116490.0,2.33073964]
[1757702586995,0.07679791,116500.0,116490.0,1.53100146]
[1757702587194,0.07679791,116500.0,116490.0,2.32208146]
[1757702589588,0.009,116500.0,116490.0,2.57208146]
[1757702590797,0.005,116500.0,116490.0,2.57208146]
[1757702590997,0.006,116500.0,116490.0,2.57208146]
[1757702591298,0.002,116500.0,116490.0,2.57208146]
[1757702592499,0.002,116500.0,116490.0,2.32208146]
[1757702593592,0.001,116500.0,116490.0,2.32208146]
[1757702593800,0.001,116500.0,116490.0,2.32308146]
[1757702594003,0.08647157,116510.0,116500.0,0.03479]
[1757702594300,0.08647157,116510.0,116500.0,1.33325714]
[1757702594502,0.08647157,116510.0,116500.0,2.12421714]
[1757702594805,0.08647157,116510.0,116500.0,2.21000484]
[1757702595495,0.24799395,116510.0,116500.0,1.98499476]
[1757702595795,0.24799395,116510.0,116500.0,1.19403476]
[1757702596102,0.24799395,116510.0,116500.0,1.62419476]
[1757702596304,0.10877157,116510.0,116500.0,1.62419476]
[1757702596498,0.24799395,116510.0,116500.0,1.62419476]
[1757702597105,0.10877157,116510.0,116500.0,1.62419476]
[1757702597293,0.24799395,116510.0,116500.0,1.62419476]
[1757702597492,0.24799395,116510.0,116500.0,0.83323476]
[1757702597806,0.10877157,116510.0,116500.0,1.62415476]
[1757702598494,0.24799395,116510.0,116500.0,1.62415476]
[1757702599201,0.24799395,116510.0,116500.0,1.34571]
[1757702599407,0.24799395,116510.0,116500.0,0.55479]
[1757702599703,0.77643871,116510.0,116500.0,1.34567]
[1757702599902,0.78908871,116510.0,116500.0,0.92567]
[1757702600101,1.14988871,116510.0,116500.0,0.12205]
[1757702600302,1.17680959,116510.0,116500.0,0.12205]
[1757702600507,1.01066633,116510.0,116500.0,0.26127238]
[1757702600903,0.85879395,116510.0,116500.0,0.17417238]
[1757702601110,0.85879395,116510.0,116500.0,0.82339476]
[1757702602008,0.85879395,116510.0,116500.0,0.68417238]
[1757702602509,0.88571519,116510.0,116500.0,0.68417238]
[1757702602711,0.85879395,116510.0,116500.0,0.68417238]
[1757702603411,0.88571549,116510.0,116500.0,0.68417238]
[1757702603606,1.02493787,116510.0,116500.0,0.53205]
[1757702603810,1.03758787,116510.0,116500.0,0.67127238]
[1757702604110,1.03758787,116510.0,116500.0,0.53205]
[1757702604310,1.03758787,116510.0,116500.0,0.67127238]
[1757702604514,1.01066633,116510.0,116500.0,0.67127238]
[1757702604711,1.01066633,116510.0,116500.0,0.53205]
[1757702605014,1.01066633,116510.0,116500.0,0.67127238]
[1757702605416,1.03758825,116510.0,116500.0,0.67127238]
[1757702605719,0.75914349,116510.0,116500.0,0.53205]
[1757702605911,0.75914349,116510.0,116500.0,0.67127238]
[1757702605912,1.03758825,116510.0,116500.0,0.67127238]
[1757702606116,0.74649349,116510.0,116500.0,0.82339476]
[1757702606415,0.88571587,116510.0,116500.0,0.82339476]
[1757702606817,0.88571587,116510.0,116500.0,0.96261714]
[1757702606818,0.13569349,116510.0,116500.0,0.96261714]
[1757702607010,0.27491587,116510.0,116500.0,0.82339476]
[1757702607312,0.11799726,116510.0,116500.0,0.56466317]
[1757702607515,0.13555183,116510.0,116500.0,0.56466317]
[1757702607709,0.13555183,116510.0,116500.0,0.84310793]
[1757702608916,0.13555183,116510.0,116500.0,1.20390793]
[1757702609221,0.13555183,116510.0,116500.0,0.90575]
[1757702609419,0.13555183,116510.0,116500.0,1.18419476]
[1757702609618,0.13555183,116510.0,116500.0,0.90575]
[1757702610022,0.13555183,116510.0,116500.0,1.18419476]
[1757702610719,0.27477421,116510.0,116500.0,0.82339476]
[1757702610922,0.13555183,116510.0,116500.0,0.82339476]
[1757702611112,0.27477421,116510.0,116500.0,0.82339476]
[1757702611826,0.13555183,116510.0,116500.0,0.82339476]
[1757702612130,0.27477421,116510.0,116500.0,0.54495]
[1757702612321,0.13555183,116510.0,116500.0,0.82339476]
[1757702612629,0.27477421,116510.0,116500.0,0.82339476]
[1757702612932,0.27477421,116510.0,116500.0,0.90575]
[1757702613224,0.13555183,116510.0,116500.0,1.18419476]
[1757702613529,0.27477421,116510.0,116500.0,1.18419476]
[1757702614832,0.13555183,116510.0,116500.0,0.90575]
[1757702615030,0.13555183,116510.0,116500.0,1.18419476]
[1757702615328,0.27477421,116510.0,116500.0,0.82339476]
[1757702615734,0.13555183,116510.0,116500.0,0.82339476]
[1757702616028,0.27477421,116510.0,116500.0,0.82339476]
[1757702616619,0.13555183,116510.0,116500.0,1.61403476]
[1757702616822,0.27477421,116510.0,116500.0,1.61403476]
[1757702617830,0.13552701,116510.0,116500.0,1.61403476]
[1757702618022,0.24785229,116510.0,116500.0,1.61403476]
[1757702618221,0.27474947,116510.0,116500.0,1.61403476]
[1757702618823,0.13552709,116510.0,116500.0,1.61403476]
[1757702619022,0.27474947,116510.0,116500.0,1.61403476]
[1757702619219,0.27474947,116510.0,116500.0,0.82339476]
[1757702619422,0.13552709,116510.0,116500.0,1.61403476]
[1757702619632,0.27474947,116510.0,116500.0,0.82339476]
[1757702620731,0.13552709,116510.0,116500.0,0.96261714]
[1757702621328,0.13552709,116510.0,116500.0,0.54495]
[1757702621533,0.13552709,116510.0,116500.0,0.96261714]
[1757702621832,0.13552709,116510.0,116500.0,0.82339476]
[1757702622231,0.13552709,116510.0,116500.0,0.96261714]
[1757702622732,0.13552709,116510.0,116500.0,0.54495]
[1757702622931,0.13552709,116510.0,116500.0,0.96261714]
[1757702623132,0.13552709,116510.0,116500.0,0.82339476]
[1757702624029,0.13552709,116510.0,116500.0,0.54495]
[1757702624229,0.13552709,116510.0,116500.0,0.90575]
[1757702624534,0.13552709,116510.0,116500.0,1.18419476]
[1757702624726,0.13552709,116510.0,116500.0,1.32341714]
[1757702624924,0.11322709,116510.0,116500.0,1.32341714]
[1757702625429,0.1132296,116510.0,116500.0,2.11405714]
[1757702626331,0.1132296,116510.0,116500.0,1.32341714]
[1757702626532,0.1132296,116510.0,116500.0,2.11405714]
[1757702628336,0.08632991,116510.0,116500.0,2.11405714]
[1757702629835,0.06877534,116510.0,116500.0,2.19984484]
[1757702630038,5e-05,116510.0,116500.0,2.44984484]
[1757702631943,5e-05,116510.0,116500.0,2.0321777]
[1757702632240,5e-05,116510.0,116500.0,2.44984484]
[1757702638548,5e-05,116510.0,116500.0,2.54984484]
[1757702640348,5e-05,116510.0,116500.0,2.50329888]
[1757702641143,0.54641059,116540.0,116530.0,0.03519]
[1757702641144,0.03832153,116540.0,116530.0,0.03519]
[1757702641344,0.29079251,116540.0,116530.0,0.76075059]
[1757702641549,0.22388212,116540.0,116530.0,0.76075059]
[1757702641845,0.23261487,116540.0,116530.0,0.76075059]
[1757702642249,0.23461487,116540.0,116530.0,1.55127059]
[1757702642451,0.23761487,116540.0,116530.0,1.55127059]
[1757702642644,0.23761487,116540.0,116530.0,0.76075059]
[1757702642841,0.23761487,116540.0,116530.0,1.55123059]
[1757702643038,0.23761487,116540.0,116530.0,0.76075059]
[1757702643852,0.23761487,116540.0,116530.0,0.57519]
[1757702645356,0.05205428,116540.0,116530.0,0.16519]
[1757702645549,0.23761487,116540.0,116530.0,0.65519]
[1757702645750,0.23761487,116540.0,116530.0,0.03519]
[1757702645951,0.23761487,116540.0,116530.0,0.18519]
[1757702646252,0.23761487,116540.0,116530.0,0.03519]
[1757702646458,0.23761487,116540.0,116530.0,0.17519]
[1757702646756,0.30670667,116540.0,116530.0,0.17519]
[1757702647758,0.30670667,116540.0,116530.0,0.62519]
[1757702647945,0.49226726,116540.0,116530.0,0.03519]
[1757702648147,0.49226726,116540.0,116530.0,0.27519]
[1757702648359,0.49226726,116540.0,116530.0,0.60519]
[1757702648858,0.30670667,116540.0,116530.0,0.60519]
[1757702652459,0.49226726,116540.0,116530.0,0.60519]
[1757702655567,1.11518726,116540.0,116530.0,0.59254]
[1757702655766,1.14195284,116540.0,116530.0,0.05254]
[1757702656859,0.74406608,116540.0,116530.0,0.05254]
[1757702657060,1.1419573,116540.0,116530.0,0.53254]
[1757702658066,1.1419573,116540.0,116530.0,0.02254]
[1757702658269,1.1419573,116540.0,116530.0,0.62254]
[1757702658672,1.9322373,116540.0,116530.0,0.62254]
[1757702661883,1.56111612,116540.0,116530.0,0.62254]
[1757702662084,0.77083612,116540.0,116530.0,0.62254]
[1757702662282,1.54895612,116540.0,116530.0,0.63538]
[1757702662786,1.9200773,116540.0,116530.0,0.63538]
[1757702662978,1.73451671,116540.0,116530.0,0.63538]
[1757702663382,0.94427671,116540.0,116530.0,0.63538]
[1757702663681,1.9200773,116540.0,116530.0,0.63538]
[1757702663881,1.73451671,116540.0,116530.0,0.63538]
[1757702664082,0.94427671,116540.0,116530.0,0.63538]
[1757702664286,1.54895612,116540.0,116530.0,0.63538]
[1757702664484,1.73451671,116540.0,116530.0,0.63538]
[1757702664684,0.14791612,116540.0,116530.0,1.18174059]
[1757702664880,1.12367671,116540.0,116530.0,1.18174059]
[1757702665185,0.14791612,116540.0,116530.0,0.99618]
[1757702665373,0.13081459,116540.0,116530.0,1.18174059]
[1757702666480,0.1483743,116540.0,116530.0,1.18174059]
[1757702667087,0.12160426,116540.0,116530.0,1.18174059]
[1757702667789,0.30716485,116540.0,116530.0,1.18174059]
[1757702668699,0.12160426,116540.0,116530.0,1.18174059]
[1757702668990,0.30716485,116540.0,116530.0,1.18174059]
[1757702669197,0.12160426,116540.0,116530.0,1.18174059]
[1757702669385,0.30716485,116540.0,116530.0,0.99618]
[1757702669583,0.30716485,116540.0,116530.0,1.18174059]
[1757702670492,0.12160426,116540.0,116530.0,1.18174059]
[1757702670692,0.30716485,116540.0,116530.0,1.18174059]
[1757702671692,0.28960514,116540.0,116530.0,1.20147653]
[1757702674299,0.28960514,116540.0,116530.0,1.01591594]
[1757702674485,0.28960514,116540.0,116530.0,1.20147653]
[1757702674992,0.28960514,116540.0,116530.0,1.01591594]
[1757702675295,0.28960514,116540.0,116530.0,1.01607015]
[1757702677199,0.28960514,116540.0,116530.0,1.18174059]
[1757702678198,0.28960514,116540.0,116530.0,0.99618]
[1757702678598,0.28960514,116540.0,116530.0,1.18174059]
[1757702678599,0.10404455,116540.0,116530.0,1.18174059]
[1757702678800,0.28960514,116540.0,116530.0,1.18174059]
[1757702680306,0.28960514,116540.0,116530.0,0.99618]
[1757702680506,0.28960514,116540.0,116530.0,1.18174059]
[1757702682605,0.28960514,116540.0,116530.0,0.82094059]
[1757702686711,0.28960514,116540.0,116530.0,0.63538]
[1757702686908,0.28960514,116540.0,116530.0,0.82094059]
[1757702687911,0.28960514,116540.0,116530.0,0.63538]
[1757702692610,0.28960514,116540.0,116530.0,0.65543748]
[1757702695220,0.10404455,116540.0,116530.0,0.65543748]
[1757702695515,0.28960514,116540.0,116530.0,0.65543748]
[1757702696617,0.31693225,116540.0,116530.0,0.65543748]
[1757702700426,0.40968854,116540.0,116530.0,0.79459592]
[1757702703833,0.40968854,116540.0,116530.0,0.65543748]
[1757702704024,0.40968854,116540.0,116530.0,0.79459592]
[1757702706934,0.13137166,116540.0,116530.0,0.79459592]
[1757702707131,0.4096873,116540.0,116530.0,0.79459592]
[1757702707739,0.4096874,116540.0,116530.0,0.79459592]
[1757702709037,0.4096874,116540.0,116530.0,0.65543748]
[1757702709230,0.4096874,116540.0,116530.0,0.79459592]
[1757702709841,0.4096874,116540.0,116530.0,1.58415592]
[1757702710530,0.4096874,116540.0,116530.0,1.44495748]
[1757702710738,0.54884584,116540.0,116530.0,1.58411592]
[1757702711634,0.4096874,116540.0,116530.0,1.58411592]
[1757702712031,0.38236143,116540.0,116530.0,1.56405844]
[1757702712231,0.39995884,116540.0,116530.0,1.56405844]
[1757702712430,0.12164196,116540.0,116530.0,1.56405844]
[1757702712631,0.39995884,116540.0,116530.0,1.56405844]
[1757702713434,0.38236143,116540.0,116530.0,1.56405844]
[1757702713636,0.40001049,116540.0,116530.0,1.56405844]
[1757702715544,0.38236143,116540.0,116530.0,1.56405844]
[1757702715841,0.39981643,116540.0,116530.0,0.96405844]
[1757702716244,0.39981643,116540.0,116530.0,1.47405844]
[1757702716542,0.39781643,116540.0,116530.0,1.47405844]
[1757702717042,0.39740696,116540.0,116530.0,0.54538]
[1757702717235,0.5365654,116540.0,116530.0,0.54538]
[1757702717644,0.11909008,116540.0,116530.0,0.54538]
[1757702717942,0.56389263,116540.0,116530.0,0.54538]
[1757702718342,0.14641731,116540.0,116530.0,0.54538]
[1757702718541,0.56389263,116540.0,116530.0,0.54538]
[1757702719345,0.56389263,116540.0,116530.0,0.58538]
[1757702719839,0.14641731,116540.0,116530.0,0.58538]
[1757702720040,0.56389263,116540.0,116530.0,0.58538]
[1757702721748,0.14641731,116540.0,116530.0,0.58538]
[1757702722047,0.56389263,116540.0,116530.0,0.58538]
[1757702724049,0.92469263,116540.0,116530.0,0.58538]
[1757702725649,0.50721731,116540.0,116530.0,0.58538]
[1757702725944,0.92469263,116540.0,116530.0,0.58538]
[1757702726148,0.93681263,116540.0,116530.0,0.57254]
[1757702726641,1.18681263,116540.0,116530.0,0.57254]
[1757702726840,1.97601263,116540.0,116530.0,0.57254]
[1757702727242,1.18681263,116540.0,116530.0,0.57254]
[1757702727446,1.97597263,116540.0,116530.0,0.57254]
[1757702727750,0.76933731,116540.0,116530.0,0.57254]
[1757702727947,1.97597263,116540.0,116530.0,0.57254]
[1757702733948,1.18681263,116540.0,116530.0,0.57254]
[1757702734150,1.18681263,116540.0,116530.0,0.58614]
[1757702734350,1.82457419,116540.0,116530.0,0.72529844]
[1757702734547,1.96373263,116540.0,116530.0,0.72529844]
[1757702734952,1.96373263,116540.0,116530.0,0.58614]
[1757702735250,1.82457419,116540.0,116530.0,0.58614]
[1757702735450,1.82457419,116540.0,116530.0,0.72529844]
[1757702735954,1.82457419,116540.0,116530.0,0.58614]
[1757702736158,1.03553419,116540.0,116530.0,0.58614]
[1757702736351,1.96373263,116540.0,116530.0,0.58614]
[1757702736555,1.96369263,116540.0,116530.0,0.58614]
[1757702738856,1.17469263,116540.0,116530.0,0.58614]
[1757702739049,1.96365263,116540.0,116530.0,0.58614]
[1757702739257,1.71365263,116540.0,116530.0,0.58614]
[1757702739561,1.29617731,116540.0,116530.0,0.58614]
[1757702739760,1.71365263,116540.0,116530.0,0.58614]
[1757702740058,1.71365263,116540.0,116530.0,0.72529844]
[1757702740261,1.71365263,116540.0,116530.0,0.58614]
[1757702740558,1.71365263,116540.0,116530.0,0.72529844]
[1757702740854,1.29617731,116540.0,116530.0,0.58614]
[1757702741051,1.21369419,116540.0,116530.0,0.72529844]
[1757702744862,0.42473419,116540.0,116530.0,0.72529844]
[1757702745060,1.21361419,116540.0,116530.0,0.72529844]
[1757702748162,1.21361419,116540.0,116530.0,0.58614]
[1757702748364,1.21361419,116540.0,116530.0,0.72529844]
[1757702749053,1.21361419,116540.0,116530.0,0.58614]
[1757702749456,1.21361419,116540.0,116530.0,0.72529844]
[1757702749963,1.35277263,116540.0,116530.0,0.72529844]
[1757702750565,1.35277263,116540.0,116530.0,0.58614]
[1757702750766,1.35277263,116540.0,116530.0,0.72529844]
[1757702751069,1.35277263,116540.0,116530.0,0.58614]
[1757702751267,1.35277263,116540.0,116530.0,0.72529844]
[1757702752367,1.35277263,116540.0,116530.0,0.58614]
[1757702752568,1.35277263,116540.0,116530.0,0.72529844]
[1757702752767,1.35277263,116540.0,116530.0,0.58614]
[1757702752960,1.35277263,116540.0,116530.0,0.72529844]
[1757702753967,0.56389263,116540.0,116530.0,0.72529844]
[1757702754266,0.56389263,116540.0,116530.0,0.58614]
[1757702754469,1.35257263,116540.0,116530.0,0.58614]
[1757702756873,0.93509731,116540.0,116530.0,0.58614]
[1757702757060,1.21341419,116540.0,116530.0,0.58614]
[1757702757467,0.93509731,116540.0,116530.0,0.72529844]
[1757702757670,1.21341419,116540.0,116530.0,0.72529844]
[1757702760169,0.93509731,116540.0,116530.0,0.72529844]
[1757702760360,1.12064467,116540.0,116530.0,0.58614]
[1757702760765,0.93497731,116540.0,116530.0,0.58614]
[1757702760966,1.12052467,116540.0,116530.0,0.58614]
[1757702762568,0.33196467,116540.0,116530.0,0.58614]
[1757702762769,0.93493731,116540.0,116530.0,0.77168736]
[1757702763065,1.12048467,116540.0,116530.0,0.77168736]
[1757702763765,1.12048467,116540.0,116530.0,0.58614]
[1757702764666,0.33196467,116540.0,116530.0,0.58614]
[1757702769164,0.10820178,116540.0,116530.0,1.38248736]
[1757702769670,0.29428283,116540.0,116530.0,2.17084736]
[1757702769870,0.26642191,116540.0,116530.0,2.17084736]
[1757702770273,0.08087455,116540.0,116530.0,2.17084736]
[1757702770473,0.26642191,116540.0,116530.0,2.17084736]
[1757702772877,0.26642191,116540.0,116530.0,2.17076736]
[1757702774866,0.26642191,116540.0,116530.0,1.38248736]
[1757702775067,0.26642191,116540.0,116530.0,2.17072736]
[1757702780576,0.08087455,116540.0,116530.0,2.17072736]
[1757702780967,0.26642191,116540.0,116530.0,2.17072736]
[1757702781672,0.08087455,116540.0,116530.0,2.17072736]
[1757702782377,0.26642191,116540.0,116530.0,2.17072736]
[1757702782581,0.08087455,116540.0,116530.0,2.25649266]
[1757702782779,0.00305,116540.0,116530.0,1.46825266]
[1757702783081,0.00305,116540.0,116530.0,2.25629266]
[1757702783878,0.00305,116540.0,116530.0,2.0707453]
[1757702784077,0.00305,116540.0,116530.0,2.25629266]
[1757702786181,0.00305,116540.0,116530.0,1.46825266]
[1757702786478,0.00305,116540.0,116530.0,2.25621266]
[1757702787170,0.00305,116540.0,116530.0,1.46825266]
[1757702787370,0.00305,116540.0,116530.0,2.0706253]
[1757702787567,0.00305,116540.0,116530.0,2.25617266]
[1757702789775,0.00305,116540.0,116530.0,2.17040736]
[1757702790478,0.00305,116540.0,116530.0,1.98486]
[1757702790678,0.00305,116540.0,116530.0,2.17032736]
[1757702792275,0.00305,116540.0,116530.0,1.38248736]
[1757702792582,0.00305,116540.0,116530.0,2.17028736]
[1757702792884,0.00305,116540.0,116530.0,1.38248736]
[1757702793181,0.00305,116540.0,116530.0,2.17024736]
[1757702794386,0.00305,116540.0,116530.0,1.38248736]
[1757702794587,0.00305,116540.0,116530.0,2.17024736]
[1757702796492,0.00305,116540.0,116530.0,2.17016736]
[1757702797588,0.00305,116540.0,116530.0,1.38248736]
[1757702797888,0.00305,116540.0,116530.0,2.17016736]
[1757702799488,0.00305,116540.0,116530.0,1.92016736]
[1757702800191,0.00305,116540.0,116530.0,1.13248736]
[1757702800490,0.00305,116540.0,116530.0,1.92008736]
[1757702801089,0.00305,116540.0,116530.0,1.13248736]
[1757702801289,0.00305,116540.0,116530.0,1.92004736]
[1757702803495,0.00305,116540.0,116530.0,1.13248736]
[1757702803890,0.00305,116540.0,116530.0,1.92000736]
[1757702811194,5e-05,116550.0,116530.0,2.19131932]
[1757702811394,5e-05,116550.0,116540.0,0.76757472]
[1757702811599,5e-05,116550.0,116540.0,1.38779507]
[1757702812501,0.00305,116550.0,116540.0,1.38779507]
[1757702812693,0.00305,116550.0,116540.0,2.17511507]
[1757702812887,5e-05,116550.0,116540.0,1.38779507]
[1757702813096,0.00305,116550.0,116540.0,1.48779507]
[1757702813501,0.00405,116550.0,116540.0,2.27507507]
[1757702813701,0.00405,116550.0,116540.0,1.48779507]
[1757702813904,0.00405,116550.0,116540.0,2.27507507]
[1757702814302,0.00405,116550.0,116540.0,1.48779507]
[1757702814508,0.00405,116550.0,116540.0,2.27507507]
[1757702816405,0.00405,116550.0,116540.0,2.08948771]
[1757702817104,0.18959736,116550.0,116540.0,1.30224771]
[1757702817409,0.18959736,116550.0,116540.0,2.08944771]
[1757702817911,0.25405,116550.0,116540.0,2.08944771]
[1757702820521,0.00405,116550.0,116540.0,2.27499507]
[1757702822513,0.00405,116550.0,116540.0,2.32120389]
[1757702823719,0.00405,116550.0,116540.0,2.30098354]
[1757702823920,0.00405,116550.0,116540.0,2.32088496]
[1757702826124,0.05405,116550.0,116540.0,2.32088496]
[1757702827125,0.05405,116550.0,116540.0,2.30098354]
[1757702827315,0.05405,116550.0,116540.0,2.32083374]
[1757702828825,0.05405,116550.0,116540.0,1.9035302]
[1757702829025,0.05405,116550.0,116540.0,2.32083374]
[1757702842840,0.05545157,116550.0,116540.0,2.32106522]
[1757702843935,0.05603457,116550.0,116540.0,2.32106522]
[1757702846432,0.05603457,116550.0,116540.0,2.32063265]
[1757702848338,0.05603457,116550.0,116540.0,2.3290706]
[1757702849244,0.05603457,116550.0,116540.0,2.32063265]
[1757702850738,0.05603457,116550.0,116540.0,2.32919216]
[1757702851046,0.05603457,116550.0,116540.0,1.53343265]
[1757702851349,0.05603457,116550.0,116540.0,2.31995265]
[1757702852140,0.05603457,116550.0,116540.0,2.32029736]
[1757702853847,0.05603457,116550.0,116540.0,2.32025736]
[1757702854641,0.05603457,116550.0,116540.0,1.90291382]
[1757702854840,0.05603457,116550.0,116540.0,1.53377736]
[1757702855041,0.05603457,116550.0,116540.0,1.90291382]
[1757702855242,0.05603457,116550.0,116540.0,2.32021736]
[1757702855441,0.05603457,116550.0,116540.0,1.53377736]
[1757702855637,0.05603457,116550.0,116540.0,1.51378354]
[1757702855949,0.05603457,116550.0,116540.0,2.32005691]
[1757702857448,0.05603457,116550.0,116540.0,1.53365691]
[1757702857648,0.05603457,116550.0,116540.0,2.32005691]
[1757702858348,0.05603457,116550.0,116540.0,2.32001691]
[1757702862050,0.05603457,116550.0,116540.0,1.53365691]
[1757702862250,0.05603457,116550.0,116540.0,2.31997691]